fUSD/lending_fUSD_20260126
["ID","MTS","AMOUNT","RATE_DAILY","PERIOD"]
[403599021,1769407844156,-500.0,0.00016625,2]
[403599022,1769407844166,-500.0,0.00016625,2]
[403599023,1769407844176,-500.0,0.00016625,2]
[403599024,1769407844185,-500.0,0.00016625,2]
[403599025,1769407844195,-500.0,0.00016625,2]
[403599026,1769407844204,-500.0,0.00016625,2]
[403599027,1769407844213,-500.0,0.00016625,2]
[403599028,1769407844223,-500.0,0.00016625,2]
[403599029,1769407844232,-500.0,0.00016625,2]
[403599030,1769407844241,-500.0,0.00016625,2]
[403599031,1769407844251,-500.0,0.00016625,2]
[403599032,1769407844261,-500.0,0.00016625,2]
[403599033,1769407844272,-500.0,0.00016625,2]
[403599034,1769407844281,-500.0,0.00016625,2]
[403599035,1769407844291,-500.0,0.00016625,2]
[403599036,1769407844300,-500.0,0.00016625,2]
[403599037,1769407844309,-500.0,0.00016625,2]
[403599038,1769407844318,-500.0,0.00016625,2]
[403599039,1769407844328,-500.0,0.00016625,2]
[403599040,1769407844338,-500.0,0.00016625,2]
[403599041,1769407844347,-500.0,0.00016625,2]
[403599042,1769407844356,-500.0,0.00016625,2]
[403599043,1769407844367,-500.0,0.00016625,2]
[403599044,1769407844376,-500.0,0.00016625,2]
[403599045,1769407844386,-500.0,0.00016625,2]
[403599046,1769407844396,-500.0,0.00016625,2]
[403599047,1769407844406,-500.0,0.00016625,2]
[403599048,1769407844416,-500.0,0.00016625,2]
[403599049,1769407844425,-500.0,0.00016625,2]
[403599050,1769407844434,-500.0,0.00016625,2]
[403599051,1769407844444,-500.0,0.00016625,2]
[403599052,1769407844454,-500.0,0.00016625,2]
[403599053,1769407844464,-500.0,0.00016625,2]
[403599054,1769407844474,-500.0,0.00016625,2]
[403599055,1769407844483,-500.0,0.00016625,2]
[403599056,1769407844493,-500.0,0.00016625,2]
[403599057,1769407844502,-500.0,0.00016625,2]
[403599058,1769407844511,-500.0,0.00016625,2]
[403599059,1769407844521,-500.0,0.00016625,2]
[403599060,1769407844531,-500.0,0.00016625,2]
[403599061,1769407844541,-500.0,0.00016625,2]
[403599062,1769407844550,-500.0,0.00016625,2]
[403599063,1769407844559,-500.0,0.00016625,2]
[403599064,1769407844569,-500.0,0.00016625,2]
[403599065,1769407844579,-500.0,0.00016625,2]
[403599066,1769407844589,-500.0,0.00016625,2]
[403599067,1769407844598,-500.0,0.00016625,2]
[403599068,1769407844608,-500.0,0.00016625,2]
[403599069,1769407844619,-500.0,0.00016625,2]
[403599070,1769407844631,-500.0,0.00016625,2]
[403599071,1769407844640,-500.0,0.00016625,2]
[403599072,1769407844650,-500.0,0.00016625,2]
[403599073,1769407844659,-500.0,0.00016625,2]
[403599074,1769407844668,-500.0,0.00016625,2]
[403599075,1769407844678,-500.0,0.00016625,2]
[403599076,1769407844687,-500.0,0.00016625,2]
[403599077,1769407844696,-500.0,0.00016625,2]
[403599078,1769407844705,-500.0,0.00016625,2]
[403599079,1769407844715,-500.0,0.00016625,2]
[403599080,1769407844724,-500.0,0.00016625,2]
[403599081,1769407844735,-500.0,0.00016625,2]
[403599082,1769407844744,-500.0,0.00016625,2]
[403599083,1769407844753,-500.0,0.00016625,2]
[403599084,1769407844763,-500.0,0.00016625,2]
[403599085,1769407844772,-500.0,0.00016625,2]
[403599086,1769407844782,-500.0,0.00016625,2]
[403599087,1769407844792,-500.0,0.00016625,2]
[403599088,1769407844801,-500.0,0.00016625,2]
[403599089,1769407844813,-500.0,0.00016625,2]
[403599090,1769407844822,-500.0,0.00016625,2]
[403599091,1769407844832,-500.0,0.00016625,2]
[403599092,1769407844842,-500.0,0.00016625,2]
[403599093,1769407844852,-500.0,0.00016625,2]
[403599094,1769407844861,-500.0,0.00016625,2]
[403599095,1769407844870,-500.0,0.00016625,2]
[403599096,1769407844879,-500.0,0.00016625,2]
[403599097,1769407844888,-500.0,0.00016625,2]
[403599098,1769407844898,-500.0,0.00016625,2]
[403599099,1769407844908,-500.0,0.00016625,2]
[403599100,1769407844917,-500.0,0.00016625,2]
[403599101,1769407844926,-500.0,0.00016625,2]
[403599102,1769407844936,-500.0,0.00016625,2]
[403599103,1769407844945,-500.0,0.00016625,2]
[403599104,1769407844954,-500.0,0.00016625,2]
[403599105,1769407844964,-500.0,0.00016625,2]
[403599106,1769407844973,-500.0,0.00016625,2]
[403599107,1769407844982,-500.0,0.00016625,2]
[403599108,1769407844991,-500.0,0.00016625,2]
[403599109,1769407845002,-500.0,0.00016625,2]
[403599110,1769407845011,-500.0,0.00016625,2]
[403599111,1769407845021,-500.0,0.00016625,2]
[403599112,1769407845031,-500.0,0.00016625,2]
[403599113,1769407845040,-500.0,0.00016625,2]
[403599114,1769407845050,-500.0,0.00016625,2]
[403599115,1769407845059,-500.0,0.00016625,2]
[403599116,1769407845068,-531.0,0.00016625,2]
[403599117,1769407845078,-500.0,0.00016625,2]
[403599118,1769407845087,-500.0,0.00016625,2]
[403599119,1769407845096,-500.0,0.00016625,2]
[403599120,1769407845105,-500.0,0.00016625,2]
[403599121,1769407845115,-500.0,0.00016625,2]
[403599122,1769407845124,-500.0,0.00016625,2]
[403599123,1769407845133,-500.0,0.00016625,2]
[403599124,1769407845143,-500.0,0.00016625,2]
[403599125,1769407845152,-500.0,0.00016625,2]
[403599126,1769407845161,-500.0,0.00016625,2]
[403599127,1769407845170,-500.0,0.00016625,2]
[403599128,1769407845179,-500.0,0.00016625,2]
[403599129,1769407845188,-500.0,0.00016625,2]
[403599130,1769407845198,-500.0,0.00016625,2]
[403599131,1769407845207,-500.0,0.00016625,2]
[403599132,1769407845216,-500.0,0.00016625,2]
[403599133,1769407845225,-500.0,0.00016625,2]
[403599134,1769407845234,-500.0,0.00016625,2]
[403599135,1769407845243,-500.0,0.00016625,2]
[403599136,1769407845252,-500.0,0.00016625,2]
[403599137,1769407845262,-500.0,0.00016625,2]
[403599138,1769407845271,-500.0,0.00016625,2]
[403599139,1769407845280,-500.0,0.00016625,2]
[403599140,1769407845290,-500.0,0.00016625,2]
[403599141,1769407845299,-500.0,0.00016625,2]
[403599142,1769407845309,-500.0,0.00016625,2]
[403599143,1769407845318,-530.0,0.00016625,2]
[403599144,1769407845328,-500.0,0.00016625,2]
[403599145,1769407845337,-500.0,0.00016625,2]
[403599146,1769407845347,-500.0,0.00016625,2]
[403599147,1769407845356,-767.0,0.00016625,2]
[403599148,1769407845366,-500.0,0.00016625,2]
[403599149,1769407845375,-986.0,0.00016625,2]
[403599150,1769407845385,-500.0,0.00016625,2]
[403599151,1769407845394,-500.0,0.00016625,2]
[403599152,1769407845403,-500.0,0.00016625,2]
[403599153,1769407845412,-500.0,0.00016625,2]
[403599154,1769407845421,-500.0,0.00016625,2]
[403599155,1769407845430,-500.0,0.00016625,2]
[403599156,1769407845440,-500.0,0.00016625,2]
[403599157,1769407845450,-500.0,0.00016625,2]
[403599158,1769407845459,-500.0,0.00016625,2]
[403599159,1769407845468,-500.0,0.00016625,2]
[403599160,1769407845478,-500.0,0.00016625,2]
[403599161,1769407845487,-500.0,0.00016625,2]
[403599162,1769407845496,-500.0,0.00016625,2]
[403599163,1769407845507,-500.0,0.00016625,2]
[403599164,1769407845516,-500.0,0.00016625,2]
[403599165,1769407845525,-500.0,0.00016625,2]
[403599166,1769407845535,-500.0,0.00016625,2]
[403599167,1769407845544,-500.0,0.00016625,2]
[403599168,1769407845553,-500.0,0.00016625,2]
[403599169,1769407845563,-500.0,0.00016625,2]
[403599170,1769407845572,-867.98,0.00016635,2]
[403599171,1769407845582,-500.0,0.00016657,2]
[403599172,1769407845590,-918.64355495,0.00016675,2]
[403599173,1769407845600,-300.0,0.00016711,2]
[403599174,1769407845609,-500.0,0.00016711,2]
[403599175,1769407845618,-500.0,0.00016712,2]
[403599176,1769407845627,-192.0,0.00016712,2]
[403599177,1769407845640,-206.5866001,0.00016712,2]
[403599178,1769407845650,-300.0,0.00016712,4]
[403599179,1769407845659,-1000.0,0.00016712,2]
[403599180,1769407845668,-166.56,0.00016712,2]
[403599181,1769407845679,-420.0,0.00016715,2]
[403599182,1769407845689,-1086.0,0.0001672,2]
[403599183,1769407845698,-1086.0,0.0001672,2]
[403599184,1769407845709,-1086.0,0.0001672,2]
[403599185,1769407845719,-1086.0,0.0001672,2]
[403599186,1769407845728,-1086.0,0.0001672,2]
[403599187,1769407845738,-1086.0,0.0001672,2]
[403599188,1769407845747,-1086.0,0.0001672,2]
[403599189,1769407845756,-837.0,0.0001672,2]
[403599190,1769407845766,-837.0,0.0001672,2]
[403599191,1769407845775,-1086.0,0.0001672,2]
[403599192,1769407845785,-330.58,0.00016729,2]
[403599193,1769407845795,-500.0,0.00016767,2]
[403599194,1769407845804,-150.0,0.0001677,2]
[403599195,1769407845813,-4146.18953673,0.00016777,2]
[403599196,1769407845822,-6970.66762,0.00016783,2]
[403599197,1769407845832,-2500.0,0.000168,2]
[403599198,1769407845841,-500.0,0.00016822,2]
[403599199,1769407845850,-153.1,0.00016825,2]
[403599200,1769407845860,-468.65,0.00016825,2]
[403599201,1769407845869,-500.0,0.00016884,2]
[403599202,1769407845878,-500.0,0.00016884,2]
[403599203,1769407845888,-501.44171962,0.00016884,2]
[403599204,1769407845897,-501.66199463,0.00016884,2]
[403599205,1769407845906,-500.63567767,0.00016884,2]
[403599206,1769407845914,-500.97270712,0.00016884,2]
[403599207,1769407845924,-501.57799136,0.00016884,2]
[403599208,1769407845932,-500.93909876,0.00016884,2]
[403599209,1769407845941,-500.79595583,0.00016884,2]
[403599210,1769407845950,-500.0,0.00016884,2]
[403599211,1769407845960,-500.46570167,0.00016884,2]
[403599212,1769407845969,-500.0,0.00016884,2]
[403599213,1769407845978,-501.16065005,0.00016884,2]
[403599214,1769407845987,-500.0,0.00016884,2]
[403599215,1769407845996,-207.38432857,0.00016884,2]
[403599216,1769407846006,-500.89949552,0.00016884,2]
[403599217,1769407846016,-501.02318751,0.00016884,2]
[403599218,1769407846025,-500.0,0.00016884,2]
[403599219,1769407846034,-501.78167983,0.00016884,2]
[403599220,1769407846043,-500.88310046,0.00016884,2]
[403599221,1769407846055,-500.03510196,0.00016884,2]
[403599222,1769407846066,-500.0,0.00016884,2]
[403599223,1769407846075,-250.07737695,0.00016884,2]
[403599224,1769407846085,-501.21016651,0.00016884,2]
[403599225,1769407846094,-501.32277439,0.00016884,2]
[403599226,1769407846104,-500.0,0.00016884,2]
[403599227,1769407846114,-500.0,0.00016884,2]
[403599228,1769407846123,-500.0,0.00016884,2]
[403599229,1769407846132,-501.32593158,0.00016884,2]
[403599230,1769407846142,-500.0,0.00016884,2]
[403599231,1769407846152,-500.0,0.00016884,2]
[403599232,1769407846161,-500.0,0.00016884,2]
[403599233,1769407846171,-501.61147833,0.00016884,2]
[403599234,1769407846180,-152.0,0.00016897,5]
[403599235,1769407846190,-1800.0,0.000169,6]
[403599236,1769407846199,-1655.8,0.00016903,2]
[403599237,1769407846208,-867.98,0.00016909,2]
[403599238,1769407846217,-334.5472959,0.00016948,2]
[403599239,1769407846226,-4146.18953673,0.00016964,2]
[403599240,1769407846235,-155.0,0.00016985,2]
[403599241,1769407846244,-300.0,0.00016985,2]
[403599242,1769407846253,-500.0,0.00016985,2]
[403599243,1769407846263,-798.0,0.00016986,2]
[403599244,1769407846272,-1000.0,0.00016986,2]
[403599245,1769407846282,-300.0,0.00016999,2]
[403599246,1769407846293,-500.0,0.00016999,2]
[403599247,1769407846304,-150.0,0.00016999,2]
[403599248,1769407846315,-300.0,0.00016999,2]
[403599249,1769407846324,-131280.33158642,0.00017,2]
[403599250,1769407846334,-222146.22810992,0.00017,2]
[403599251,1769407846522,-27550.0,0.00017,2]
[403599252,1769407849736,-331.4424786,0.00016507,2]
[403599254,1769407944816,518.02801532,0.00015,30]
[403599255,1769407945387,403.36942524,0.00015,30]
[403599274,1769408665277,150.0,0.000103,2]
[403599275,1769408991802,161.84,0.00011,10]
[403599284,1769409031774,-150.0,0.000125,2]
[403599285,1769409031783,-139.88510599,0.000125,2]
[403599286,1769409031795,-112.11489401,0.000125,2]
[403599287,1769409031804,-192.12861597,0.00012553,2]
[403599288,1769409031815,-807.87138403,0.00012553,2]
[403599289,1769409031824,-150.0,0.000126,2]
[403599290,1769409031834,-252.24350998,0.0001301,2]
[403599291,1769409031896,-677.36324147,0.0001301,2]
[403599292,1769409031908,-70.39324855,0.0001301,2]
[403599293,1769409031917,-1000.0,0.00013464,2]
[403599294,1769409031926,-758.56675145,0.00013634,2]
[403599295,1769409031949,-241.43324855,0.00013634,2]
[403599296,1769409031959,-166.66,0.00013651,2]
[403599297,1769409031971,-131.86647883,0.00013938,2]
[403599298,1769409031982,-34.79352117,0.00013938,2]
[403599299,1769409031991,-239.40647883,0.00013952,2]
[403599300,1769409032003,-960.59352117,0.00013952,2]
[403599301,1769409032012,-3006.08,0.00013953,2]
[403599302,1769409032022,-200.43117,0.00014,2]
[403599303,1769409032032,-300.0,0.00014049,2]
[403599304,1769409032041,-275.52772582,0.00014049,2]
[403599305,1769409032057,-24.47227418,0.00014049,2]
[403599306,1769409032066,-300.0,0.00014049,2]
[403599307,1769409032075,-257.55781953,0.0001405,2]
[403599308,1769409032084,-348.48,0.0001405,2]
[403599309,1769409032094,-166.66,0.00014225,2]
[403599310,1769409032104,-600.0,0.00014394,2]
[403599311,1769409032113,-166.66,0.00014513,2]
[403599312,1769409032123,-1000.0,0.00014691,2]
[403599313,1769409032132,-536.0,0.00014776,2]
[403599314,1769409032141,-1000.0,0.00014778,2]
[403599315,1769409032150,-800.04816606,0.00014799,2]
[403599316,1769409032159,-166.66,0.000148,2]
[403599317,1769409032169,-165.57,0.00014939,2]
[403599318,1769409032179,-150.0,0.00015066,2]
[403599319,1769409032188,-166.66,0.00015087,2]
[403599320,1769409032197,-17151.9385803,0.00015186,2]
[403599334,1769409038612,-619.79158319,0.00015186,2]
[403599335,1769409038624,-827.79055459,0.00015186,2]
[403599336,1769409038635,-791.20191441,0.00015186,2]
[403599337,1769409038781,-2047.57159741,0.00015186,2]
[403599338,1769409038792,-1523.42760257,0.00015186,2]
[403599339,1769409038804,-1103.16022683,0.00015186,2]
[403599340,1769409038861,-159369.05247678,0.00015186,2]
[403599341,1769409038873,-386.1649995,0.00015186,2]
[403599342,1769409040338,-4619.3532433,0.00015186,2]
[403599343,1769409040397,-1084.13338291,0.00015186,2]
[403599344,1769409040408,-1729.9999,0.00015186,2]
[403599345,1769409040419,-20120.54,0.00015186,2]
[403599346,1769409040430,-788625.87393821,0.00015186,2]
[403599347,1769409040439,-7780.3473864,0.00015286,2]
[403599348,1769409040449,-300.0,0.00015286,2]
[403599349,1769409040458,-215.0,0.00015291,2]
[403599350,1769409040468,-2139.43,0.00015329,2]
[403599351,1769409040477,-986.0,0.00015348,2]
[403599352,1769409040487,-151.0,0.00015383,2]
[403599353,1769409040497,-500.0,0.00015385,2]
[403599354,1769409040506,-301.64798194,0.00015385,2]
[403599355,1769409040515,-503.27775509,0.00015385,2]
[403599356,1769409040524,-500.0,0.00015385,2]
[403599357,1769409040534,-230.56224444,0.00015385,2]
[403599358,1769409040543,-504.08893195,0.00015385,2]
[403599359,1769409040552,-500.0,0.00015385,2]
[403599360,1769409040562,-459.76333055,0.00015385,2]
[403599361,1769409040572,-157.58804104,0.00015385,2]
[403599362,1769409040581,-500.0,0.00015385,2]
[403599363,1769409040590,-500.0,0.00015385,2]
[403599364,1769409040600,-500.0,0.00015385,2]
[403599365,1769409040609,-500.0,0.00015385,2]
[403599366,1769409040618,-500.0,0.00015385,2]
[403599367,1769409040627,-500.0,0.00015385,2]
[403599368,1769409040636,-500.0,0.00015385,2]
[403599369,1769409040645,-500.0,0.00015385,2]
[403599370,1769409040655,-500.0,0.00015385,2]
[403599371,1769409040664,-500.0,0.00015385,2]
[403599372,1769409040673,-500.0,0.00015385,2]
[403599373,1769409040683,-500.0,0.00015385,2]
[403599374,1769409040692,-500.0,0.00015385,2]
[403599375,1769409040701,-500.0,0.00015385,2]
[403599376,1769409040710,-500.0,0.00015385,2]
[403599377,1769409040719,-500.0,0.00015385,2]
[403599378,1769409040728,-500.0,0.00015385,2]
[403599379,1769409040737,-500.0,0.00015385,2]
[403599380,1769409040746,-500.0,0.00015385,2]
[403599381,1769409040755,-500.0,0.00015385,2]
[403599382,1769409040765,-601.20585949,0.00015386,2]
[403599383,1769409040774,-180.0,0.00015391,2]
[403599384,1769409040784,-420.0,0.00015391,2]
[403599385,1769409040793,-1000.0,0.00015478,2]
[403599386,1769409040802,-7780.34738635,0.00015576,2]
[403599387,1769409040812,-151.0,0.00015613,2]
[403599388,1769409040821,-578.20924308,0.00015613,2]
[403599389,1769409040830,-9595.29732163,0.00015613,2]
[403599390,1769409040839,-151.0,0.00015613,2]
[403599391,1769409040848,-209.40437684,0.00015613,2]
[403599392,1769409040857,-500.0,0.00015613,2]
[403599393,1769409040866,-500.0,0.00015613,2]
[403599394,1769409040875,-250.0,0.00015613,2]
[403599395,1769409040884,-500.0,0.00015613,2]
[403599396,1769409040892,-250.0,0.00015613,2]
[403599397,1769409040901,-500.0,0.00015613,2]
[403599398,1769409040910,-250.0,0.00015613,2]
[403599399,1769409040919,-2500.0,0.00015613,2]
[403599400,1769409040928,-500.0,0.00015613,2]
[403599401,1769409040938,-250.0,0.00015613,2]
[403599402,1769409040947,-500.0,0.00015613,2]
[403599403,1769409040956,-2500.0,0.00015613,2]
[403599404,1769409040971,-250.0,0.00015613,2]
[403599405,1769409040980,-209.40437684,0.00015613,2]
[403599406,1769409040989,-2500.0,0.00015613,2]
[403599407,1769409040999,-500.0,0.00015613,2]
[403599408,1769409041009,-250.0,0.00015613,2]
[403599409,1769409041019,-500.0,0.00015613,2]
[403599410,1769409041027,-2500.0,0.00015613,2]
[403599411,1769409041039,-250.0,0.00015613,2]
[403599412,1769409041049,-500.0,0.00015613,2]
[403599413,1769409041058,-250.0,0.00015613,2]
[403599414,1769409041068,-2500.0,0.00015613,2]
[403599415,1769409041077,-252.5692863,0.00015613,2]
[403599416,1769409041087,-500.0,0.00015613,2]
[403599417,1769409041096,-250.0,0.00015613,2]
[403599418,1769409041105,-2500.0,0.00015613,2]
[403599419,1769409041114,-500.0,0.00015613,2]
[403599420,1769409041123,-250.0,0.00015613,2]
[403599421,1769409041132,-2500.0,0.00015613,2]
[403599422,1769409041141,-1000.0,0.00015613,2]
[403599423,1769409041150,-2500.0,0.00015613,2]
[403599424,1769409041160,-250.0,0.00015613,2]
[403599425,1769409041169,-1000.0,0.00015613,2]
[403599426,1769409041178,-2000.0,0.00015613,2]
[403599427,1769409041188,-250.0,0.00015613,2]
[403599428,1769409041197,-1000.0,0.00015613,2]
[403599429,1769409041206,-250.0,0.00015613,2]
[403599430,1769409041215,-1000.0,0.00015613,2]
[403599431,1769409041224,-250.0,0.00015613,2]
[403599432,1769409041234,-250.0,0.00015613,2]
[403599433,1769409041243,-1000.0,0.00015613,2]
[403599434,1769409041252,-151.0,0.00015613,2]
[403599435,1769409041261,-250.0,0.00015613,2]
[403599436,1769409041271,-250.0,0.00015613,2]
[403599437,1769409041280,-1000.0,0.00015613,2]
[403599438,1769409041289,-303.36635592,0.00015613,2]
[403599439,1769409041298,-250.0,0.00015613,2]
[403599440,1769409041308,-250.0,0.00015613,2]
[403599441,1769409041318,-1000.0,0.00015613,2]
[403599442,1769409041327,-250.0,0.00015613,2]
[403599443,1769409041336,-250.0,0.00015613,2]
[403599444,1769409041347,-250.0,0.00015613,2]
[403599445,1769409041356,-220.0,0.00015613,2]
[403599446,1769409041365,-1000.0,0.00015613,2]
[403599447,1769409041374,-250.0,0.00015613,2]
[403599448,1769409041383,-250.0,0.00015613,2]
[403599449,1769409041393,-250.0,0.00015613,2]
[403599450,1769409041402,-220.0,0.00015613,2]
[403599451,1769409041411,-1000.0,0.00015613,2]
[403599452,1769409041420,-250.0,0.00015613,2]
[403599453,1769409041429,-250.0,0.00015613,2]
[403599454,1769409041439,-344.90178664,0.00015613,2]
[403599455,1769409041448,-1000.0,0.00015613,2]
[403599456,1769409041457,-250.0,0.00015613,2]
[403599457,1769409041470,-250.0,0.00015613,2]
[403599458,1769409041479,-1000.0,0.00015613,2]
[403599459,1769409041489,-250.0,0.00015613,2]
[403599460,1769409041498,-250.0,0.00015613,2]
[403599461,1769409041508,-250.0,0.00015613,2]
[403599462,1769409041519,-250.0,0.00015613,2]
[403599463,1769409041530,-250.0,0.00015613,2]
[403599464,1769409041538,-250.0,0.00015613,2]
[403599465,1769409041548,-250.0,0.00015613,2]
[403599466,1769409041557,-250.0,0.00015613,2]
[403599467,1769409041566,-250.0,0.00015613,2]
[403599468,1769409041576,-250.0,0.00015613,2]
[403599469,1769409041585,-250.0,0.00015613,2]
[403599470,1769409041595,-250.0,0.00015613,2]
[403599471,1769409041604,-250.0,0.00015613,2]
[403599472,1769409041614,-250.0,0.00015613,2]
[403599473,1769409041625,-250.0,0.00015613,2]
[403599474,1769409041636,-250.0,0.00015613,2]
[403599475,1769409041646,-854.2589148,0.00015613,2]
[403599476,1769409041655,-209.40437684,0.00015613,2]
[403599477,1769409041664,-250.0,0.00015613,2]
[403599478,1769409041673,-250.0,0.00015613,2]
[403599479,1769409041683,-250.0,0.00015613,2]
[403599480,1769409041692,-167.05212111,0.00015613,2]
[403599481,1769409041701,-250.0,0.00015613,2]
[403599482,1769409041710,-250.0,0.00015613,2]
[403599483,1769409041719,-250.0,0.00015613,2]
[403599484,1769409041729,-250.0,0.00015613,2]
[403599485,1769409041739,-250.0,0.00015613,2]
[403599486,1769409041749,-250.0,0.00015613,2]
[403599487,1769409041758,-250.0,0.00015613,2]
[403599488,1769409041767,-250.0,0.00015613,2]
[403599489,1769409041776,-721.12765535,0.00015613,2]
[403599490,1769409041786,-174.61919141,0.00015613,2]
[403599491,1769409041796,-250.0,0.00015613,2]
[403599492,1769409041807,-250.0,0.00015613,2]
[403599493,1769409041818,-151.0,0.00015613,2]
[403599494,1769409041828,-250.0,0.00015613,2]
[403599495,1769409041839,-250.0,0.00015613,2]
[403599496,1769409041849,-151.0,0.00015613,2]
[403599497,1769409041859,-250.0,0.00015613,2]
[403599498,1769409041868,-250.0,0.00015613,2]
[403599499,1769409041877,-151.0,0.00015613,2]
[403599500,1769409041887,-250.0,0.00015613,2]
[403599501,1769409041896,-250.0,0.00015613,2]
[403599502,1769409041907,-151.0,0.00015613,2]
[403599503,1769409041917,-250.0,0.00015613,2]
[403599504,1769409041926,-250.0,0.00015613,2]
[403599505,1769409041936,-250.0,0.00015613,2]
[403599506,1769409041945,-151.0,0.00015613,2]
[403599507,1769409041955,-250.0,0.00015613,2]
[403599508,1769409041968,-151.0,0.00015613,2]
[403599509,1769409041977,-250.0,0.00015613,2]
[403599510,1769409041987,-151.0,0.00015613,2]
[403599511,1769409041996,-250.0,0.00015613,2]
[403599512,1769409042007,-151.0,0.00015613,2]
[403599513,1769409042016,-250.0,0.00015613,2]
[403599514,1769409042025,-151.0,0.00015613,2]
[403599515,1769409042037,-322.6107,0.00015613,2]
[403599516,1769409042046,-250.0,0.00015613,2]
[403599517,1769409042055,-151.0,0.00015613,2]
[403599518,1769409042064,-250.0,0.00015613,2]
[403599519,1769409042074,-151.0,0.00015613,2]
[403599520,1769409042083,-3000.0,0.00015613,2]
[403599521,1769409042092,-3000.0,0.00015613,2]
[403599522,1769409042102,-3000.0,0.00015613,2]
[403599523,1769409042111,-3000.0,0.00015613,2]
[403599524,1769409042121,-3000.0,0.00015613,2]
[403599525,1769409042130,-3000.0,0.00015613,2]
[403599526,1769409042139,-3000.0,0.00015613,2]
[403599527,1769409042149,-1000.0,0.00015613,2]
[403599528,1769409042158,-752.7847282,0.00015613,2]
[403599529,1769409042167,-1800.0,0.000158,5]
[403599530,1769409042176,-7780.34738635,0.00015867,2]
[403599531,1769409042186,-1000.0,0.00015874,2]
[403599532,1769409042195,-3700.0,0.000159,5]
[403599533,1769409042205,-150.0,0.00015921,2]
[403599534,1769409042214,-3442.48960295,0.0001596,2]
[403599535,1769409042223,-190.85256819,0.00015961,2]
[403599536,1769409042234,-1000.0,0.00015961,2]
[403599537,1769409042243,-33257.5075,0.00015961,2]
[403599538,1769409042253,-778.9951,0.00016,2]
[403599539,1769409042262,-150.0,0.00016,2]
[403599540,1769409042271,-200.0,0.00016,2]
[403599541,1769409042280,-865.33,0.00016051,2]
[403599542,1769409042290,-500.0,0.00016055,2]
[403599543,1769409042300,-200.0,0.00016055,2]
[403599544,1769409042309,-150.0,0.00016055,2]
[403599545,1769409042318,-151.12842579,0.00016055,2]
[403599546,1769409042329,-500.0,0.00016055,2]
[403599547,1769409042339,-500.0,0.00016055,2]
[403599548,1769409042349,-500.0,0.00016055,2]
[403599549,1769409042359,-500.0,0.00016055,2]
[403599550,1769409042368,-500.0,0.00016055,2]
[403599551,1769409042378,-500.0,0.00016055,2]
[403599552,1769409042389,-150.0,0.00016055,2]
[403599553,1769409042399,-150.0,0.00016055,2]
[403599554,1769409042409,-500.0,0.00016055,2]
[403599555,1769409042419,-187.12881063,0.00016059,2]
[403599556,1769409042428,-500.0,0.0001606,2]
[403599557,1769409042438,-500.0,0.0001606,2]
[403599558,1769409042447,-500.0,0.0001606,2]
[403599559,1769409042456,-500.0,0.0001606,2]
[403599560,1769409042465,-500.0,0.0001606,2]